[Event "Titled Tuesday Blitz June 15 2021"]
[White "Donchenko, Alexander"]
[Black "Yoo, Christopher Woojin"]
[WhiteFideId "24603295"]
[BlackFideId "30909694"]
[WhiteElo "2553"]
[BlackElo "2009"]
[Result "1-0"]
[Round "09"]
[TimeControl "180+1"]
[Date "2021.06.15"]
[WhiteClock "0:00:05"]
[BlackClock "0:00:07"]

1. e4 {[%clk 0:03:00]}  c5 {[%clk 0:02:59]} 2. Nf3 {[%clk 0:03:01]}  e6 {[%clk 0:02:59]} 3. g3 {[%clk 0:03:00]}  Nc6 {[%clk 0:02:59]} 4. Bg2 {[%clk 0:03:00]}  Nf6 {[%clk 0:03:00]} 5. Qe2 {[%clk 0:03:00]}  Be7 {[%clk 0:03:00]} 6. O-O {[%clk 0:03:00]}  d5 {[%clk 0:02:59]} 7. exd5 {[%clk 0:02:59]}  exd5 {[%clk 0:02:59]} 8. d4 {[%clk 0:02:50]}  cxd4 {[%clk 0:02:57]} 9. Nbd2 {[%clk 0:02:49]}  O-O {[%clk 0:02:56]} 10. Nb3 {[%clk 0:02:49]}  Bg4 {[%clk 0:02:56]} 11. h3 {[%clk 0:02:49]}  Bxf3 {[%clk 0:02:55]} 12. Qxf3 {[%clk 0:02:49]}  Qb6 {[%clk 0:02:51]} 13. Rd1 {[%clk 0:02:44]}  Rac8 {[%clk 0:02:41]} 14. a3 {[%clk 0:02:21]}  Ne4 {[%clk 0:01:59]} 15. Qd3 {[%clk 0:02:13]}  Bf6 {[%clk 0:01:49]} 16. Bxe4 {[%clk 0:01:56]}  dxe4 {[%clk 0:01:50]} 17. Qxe4 {[%clk 0:01:56]}  Rfe8 {[%clk 0:01:50]} 18. Qf5 {[%clk 0:01:56]}  a5 {[%clk 0:01:29]} 19. Bg5 {[%clk 0:01:45]}  Ne7 {[%clk 0:01:26]} 20. Qg4 {[%clk 0:01:34]}  Bxg5 {[%clk 0:01:25]} 21. Qxg5 {[%clk 0:01:35]}  Rxc2 {[%clk 0:01:25]} 22. Nxd4 {[%clk 0:01:22]}  Rxb2 {[%clk 0:01:25]} 23. Qe3 {[%clk 0:01:15]}  Qf6 {[%clk 0:01:05]} 24. Rab1 {[%clk 0:01:07]}  Rxb1 {[%clk 0:00:55]} 25. Rxb1 {[%clk 0:01:08]}  Rb8 {[%clk 0:00:55]} 26. Re1 {[%clk 0:00:58]}  Ng6 {[%clk 0:00:54]} 27. Nb5 {[%clk 0:00:54]}  b6 {[%clk 0:00:51]} 28. h4 {[%clk 0:00:53]}  h6 {[%clk 0:00:50]} 29. Nc3 {[%clk 0:00:49]}  Qc6 {[%clk 0:00:46]} 30. Qd4 {[%clk 0:00:45]}  b5 {[%clk 0:00:19]} 31. h5 {[%clk 0:00:43]}  Nf8 {[%clk 0:00:11]} 32. Nd5 {[%clk 0:00:43]}  Qc4 {[%clk 0:00:07]} 33. Qe5 {[%clk 0:00:40]}  Rd8 {[%clk 0:00:04]} 34. Ne7+ {[%clk 0:00:39]}  Kh8 {[%clk 0:00:04]} 35. Nf5 {[%clk 0:00:39]}  f6 {[%clk 0:00:03]} 36. Qe7 {[%clk 0:00:38]}  Ne6 {[%clk 0:00:02]} 37. Qxe6 {[%clk 0:00:27]}  Qc3 {[%clk 0:00:01]} 38. Qe7 {[%clk 0:00:24]}  Rg8 {[%clk 0:00:01]} 39. Rd1 {[%clk 0:00:23]}  Qb3 {[%clk 0:00:01]} 40. Ne3 {[%clk 0:00:12]}  b4 {[%clk 0:00:01]} 41. axb4 {[%clk 0:00:12]}  axb4 {[%clk 0:00:02]} 42. Rd7 {[%clk 0:00:09]}  Qb1+ {[%clk 0:00:02]} 43. Kg2 {[%clk 0:00:09]}  b3 {[%clk 0:00:03]} 44. Rb7 {[%clk 0:00:09]}  Qd3 {[%clk 0:00:03]} 45. Qb4 {[%clk 0:00:08]}  Qe2 {[%clk 0:00:03]} 46. Qxb3 {[%clk 0:00:08]}  Qxh5 {[%clk 0:00:03]} 47. Qf7 {[%clk 0:00:08]}  Qg5 {[%clk 0:00:02]} 48. Qe6 {[%clk 0:00:07]}  Qg6 {[%clk 0:00:02]} 49. Rb4 {[%clk 0:00:06]}  Qh5 {[%clk 0:00:02]} 50. Rh4 {[%clk 0:00:06]}  Qg5 {[%clk 0:00:01]} 51. Nf5 {[%clk 0:00:06]}  Kh7 {[%clk 0:00:01]} 52. Qd7 {[%clk 0:00:05]}  Rh8 {[%clk 0:00:01]} 53. Qe6 {[%clk 0:00:02]}  Rg8 {[%clk 0:00:01]} 54. Rf4 {[%clk 0:00:02]}  Qg6 {[%clk 0:00:01]} 55. Ne7 {[%clk 0:00:01]}  Re8 {[%clk 0:00:01]} 56. Nxg6 {[%clk 0:00:01]}  Rxe6 {[%clk 0:00:02]} 57. Nf8+ {[%clk 0:00:02]}  Kg8 {[%clk 0:00:03]} 58. Nxe6 {[%clk 0:00:03]}  Kf7 {[%clk 0:00:04]} 59. Nd4 {[%clk 0:00:03]}  g6 {[%clk 0:00:05]} 60. Re4 {[%clk 0:00:04]}  g5 {[%clk 0:00:06]} 61. Re3 {[%clk 0:00:05]}  Kg6 {[%clk 0:00:06]} 62. g4 {[%clk 0:00:05]}  f5 {[%clk 0:00:07]} 1-0


[Site "https://www.chess.com"]

[Event "Titled Tuesday Blitz June 15 2021"]
[White "Eljanov, Pavel"]
[Black "Praggnanandhaa R"]
[WhiteFideId "14102951"]
[BlackFideId "25059530"]
[WhiteElo "2602"]
[BlackElo "2555"]
[Result "0-1"]
[Round "09"]
[TimeControl "180+1"]
[Date "2021.06.15"]
[WhiteClock "0:00:04"]
[BlackClock "0:00:11"]

1. Nf3 {[%clk 0:03:00]}  Nf6 {[%clk 0:02:59]} 2. g3 {[%clk 0:03:00]}  g6 {[%clk 0:02:59]} 3. Bg2 {[%clk 0:03:01]}  Bg7 {[%clk 0:03:00]} 4. c4 {[%clk 0:03:02]}  O-O {[%clk 0:02:59]} 5. d4 {[%clk 0:03:00]}  d6 {[%clk 0:02:59]} 6. Nc3 {[%clk 0:03:00]}  Nbd7 {[%clk 0:02:59]} 7. O-O {[%clk 0:03:00]}  e5 {[%clk 0:02:59]} 8. e4 {[%clk 0:03:00]}  b6 {[%clk 0:02:58]} 9. h3 {[%clk 0:02:51]}  Bb7 {[%clk 0:02:37]} 10. d5 {[%clk 0:02:47]}  Nc5 {[%clk 0:02:36]} 11. Qc2 {[%clk 0:02:35]}  a5 {[%clk 0:02:35]} 12. Be3 {[%clk 0:02:34]}  Nh5 {[%clk 0:02:29]} 13. a3 {[%clk 0:02:09]}  f5 {[%clk 0:02:17]} 14. exf5 {[%clk 0:02:07]}  gxf5 {[%clk 0:02:14]} 15. b4 {[%clk 0:01:54]}  axb4 {[%clk 0:01:45]} 16. axb4 {[%clk 0:01:55]}  Rxa1 {[%clk 0:01:45]} 17. Rxa1 {[%clk 0:01:56]}  f4 {[%clk 0:01:14]} 18. bxc5 {[%clk 0:01:47]}  fxe3 {[%clk 0:01:13]} 19. fxe3 {[%clk 0:01:23]}  e4 {[%clk 0:01:00]} 20. Nd4 {[%clk 0:01:17]}  Qg5 {[%clk 0:00:32]} 21. Qd2 {[%clk 0:00:49]}  Nxg3 {[%clk 0:00:25]} 22. cxd6 {[%clk 0:00:37]}  cxd6 {[%clk 0:00:23]} 23. Ne6 {[%clk 0:00:18]}  Bxc3 {[%clk 0:00:20]} 24. Qxc3 {[%clk 0:00:19]}  Ne2+ {[%clk 0:00:19]} 25. Kh1 {[%clk 0:00:20]}  Qg3 {[%clk 0:00:13]} 26. Qe1 {[%clk 0:00:04]}  Rf2 {[%clk 0:00:12]} 27. Qxf2 {[%clk 0:00:04]}  Qxf2 {[%clk 0:00:11]} 0-1


[Site "https://www.chess.com"]

[Event "Titled Tuesday Blitz June 15 2021"]
[White "Howell, David W L"]
[Black "Timofeev, Artyom"]
[WhiteFideId "410608"]
[BlackFideId "4140419"]
[WhiteElo "2643"]
[BlackElo "2582"]
[Result "1-0"]
[Round "09"]
[TimeControl "180+1"]
[Date "2021.06.15"]
[WhiteClock "0:00:08"]
[BlackClock "0:00:12"]

1. d4 {[%clk 0:03:00]}  Nf6 {[%clk 0:02:59]} 2. Bg5 {[%clk 0:03:00]}  b6 {[%clk 0:02:58]} 3. Bxf6 {[%clk 0:02:56]}  exf6 {[%clk 0:02:58]} 4. Nf3 {[%clk 0:02:41]}  Bb7 {[%clk 0:02:58]} 5. g3 {[%clk 0:02:41]}  g6 {[%clk 0:02:56]} 6. Bg2 {[%clk 0:02:41]}  Bg7 {[%clk 0:02:56]} 7. O-O {[%clk 0:02:42]}  O-O {[%clk 0:02:57]} 8. c4 {[%clk 0:02:39]}  d5 {[%clk 0:02:56]} 9. cxd5 {[%clk 0:02:38]}  Bxd5 {[%clk 0:02:56]} 10. Nc3 {[%clk 0:02:39]}  Bb7 {[%clk 0:02:56]} 11. e3 {[%clk 0:02:22]}  f5 {[%clk 0:02:54]} 12. b4 {[%clk 0:02:18]}  Nd7 {[%clk 0:02:53]} 13. b5 {[%clk 0:02:07]}  c5 {[%clk 0:02:42]} 14. bxc6 {[%clk 0:02:06]}  Bxc6 {[%clk 0:02:42]} 15. Qb3 {[%clk 0:02:03]}  Rc8 {[%clk 0:02:38]} 16. Rfc1 {[%clk 0:01:58]}  Qe7 {[%clk 0:02:38]} 17. a4 {[%clk 0:01:57]}  Rfd8 {[%clk 0:02:16]} 18. a5 {[%clk 0:01:48]}  Rb8 {[%clk 0:02:08]} 19. axb6 {[%clk 0:01:44]}  Rxb6 {[%clk 0:02:05]} 20. Nd5 {[%clk 0:00:57]}  Bxd5 {[%clk 0:01:48]} 21. Qxd5 {[%clk 0:00:58]}  a6 {[%clk 0:01:36]} 22. Rc7 {[%clk 0:00:50]}  Nf6 {[%clk 0:01:31]} 23. Qc4 {[%clk 0:00:44]}  Nd7 {[%clk 0:01:03]} 24. h4 {[%clk 0:00:34]}  h6 {[%clk 0:00:57]} 25. Rxa6 {[%clk 0:00:30]}  Rb1+ {[%clk 0:00:56]} 26. Kh2 {[%clk 0:00:28]}  Kh7 {[%clk 0:00:54]} 27. Raa7 {[%clk 0:00:24]}  Qe8 {[%clk 0:00:52]} 28. Nd2 {[%clk 0:00:16]}  Rb2 {[%clk 0:00:33]} 29. Qc3 {[%clk 0:00:14]}  Rbb8 {[%clk 0:00:19]} 30. Bc6 {[%clk 0:00:14]}  Rbc8 {[%clk 0:00:13]} 31. Bxd7 {[%clk 0:00:12]}  Rxc7 {[%clk 0:00:12]} 32. Qxc7 {[%clk 0:00:10]}  Qe7 {[%clk 0:00:12]} 33. Bc6 {[%clk 0:00:08]} 1-0


[Site "https://www.chess.com"]

[Event "Titled Tuesday Blitz June 15 2021"]
[White "Javakhadze, Zurab"]
[Black "Sychev, Klementy"]
[WhiteFideId "13603647"]
[BlackFideId "4114060"]
[WhiteElo "2381"]
[BlackElo "2615"]
[Result "1-0"]
[Round "09"]
[TimeControl "180+1"]
[Date "2021.06.15"]
[WhiteClock "0:00:18"]
[BlackClock "0:00:02"]

1. Nf3 {[%clk 0:03:00]}  Nf6 {[%clk 0:02:52]} 2. c4 {[%clk 0:02:59]}  d6 {[%clk 0:02:47]} 3. Nc3 {[%clk 0:02:54]}  g6 {[%clk 0:02:44]} 4. d4 {[%clk 0:02:45]}  Bg7 {[%clk 0:02:44]} 5. g3 {[%clk 0:02:44]}  O-O {[%clk 0:02:44]} 6. Bg2 {[%clk 0:02:45]}  Nbd7 {[%clk 0:02:35]} 7. O-O {[%clk 0:02:44]}  e5 {[%clk 0:02:36]} 8. b3 {[%clk 0:02:43]}  Re8 {[%clk 0:02:32]} 9. e4 {[%clk 0:02:40]}  exd4 {[%clk 0:02:27]} 10. Nxd4 {[%clk 0:02:40]}  Nc5 {[%clk 0:02:28]} 11. Re1 {[%clk 0:02:35]}  Ng4 {[%clk 0:02:24]} 12. Nd5 {[%clk 0:02:00]}  c6 {[%clk 0:02:00]} 13. Nf4 {[%clk 0:01:59]}  Ne5 {[%clk 0:01:40]} 14. Be3 {[%clk 0:01:44]}  g5 {[%clk 0:01:24]} 15. Nfe2 {[%clk 0:01:31]}  Ng4 {[%clk 0:01:20]} 16. Bc1 {[%clk 0:01:22]}  d5 {[%clk 0:00:40]} 17. exd5 {[%clk 0:01:13]}  Qf6 {[%clk 0:00:35]} 18. Rf1 {[%clk 0:00:56]}  Rxe2 {[%clk 0:00:26]} 19. Qxe2 {[%clk 0:00:52]}  Qxd4 {[%clk 0:00:26]} 20. Qe8+ {[%clk 0:00:50]}  Bf8 {[%clk 0:00:26]} 21. Bxg5 {[%clk 0:00:48]}  h6 {[%clk 0:00:15]} 22. Be7 {[%clk 0:00:44]}  Nd7 {[%clk 0:00:08]} 23. dxc6 {[%clk 0:00:42]}  bxc6 {[%clk 0:00:08]} 24. Bxc6 {[%clk 0:00:41]}  Ngf6 {[%clk 0:00:06]} 25. Qd8 {[%clk 0:00:40]}  Rb8 {[%clk 0:00:05]} 26. Bxf8 {[%clk 0:00:35]}  Bb7 {[%clk 0:00:03]} 27. Rad1 {[%clk 0:00:20]}  Rxd8 {[%clk 0:00:02]} 28. Rxd4 {[%clk 0:00:20]}  Bxc6 {[%clk 0:00:03]} 29. Be7 {[%clk 0:00:20]}  Re8 {[%clk 0:00:03]} 30. Bxf6 {[%clk 0:00:19]}  Nxf6 {[%clk 0:00:03]} 31. Rd6 {[%clk 0:00:20]}  Re6 {[%clk 0:00:04]} 32. Rfd1 {[%clk 0:00:20]}  Kf8 {[%clk 0:00:03]} 33. Rxe6 {[%clk 0:00:20]}  fxe6 {[%clk 0:00:04]} 34. Rd6 {[%clk 0:00:21]}  Bb7 {[%clk 0:00:02]} 35. Rxe6 {[%clk 0:00:21]}  Ng4 {[%clk 0:00:03]} 36. h3 {[%clk 0:00:20]}  Kf7 {[%clk 0:00:03]} 37. Rd6 {[%clk 0:00:18]}  Ke7 {[%clk 0:00:03]} 38. Rg6 {[%clk 0:00:17]}  Ne5 {[%clk 0:00:01]} 39. Rxh6 {[%clk 0:00:18]}  Nf3+ {[%clk 0:00:02]} 40. Kf1 {[%clk 0:00:18]} 1-0


[Site "https://www.chess.com"]

[Event "Titled Tuesday Blitz June 15 2021"]
[White "Jobava, Baadur"]
[Black "Rud_Makarian"]
[WhiteFideId "13601520"]
[WhiteElo "2748"]
[BlackElo "2777"]
[Result "1-0"]
[Round "09"]
[TimeControl "180+1"]
[Date "2021.06.15"]
[WhiteClock "0:01:35"]
[BlackClock "0:00:56"]

1. e4 {[%clk 0:03:00]}  e5 {[%clk 0:02:55]} 2. Nf3 {[%clk 0:02:57]}  Nc6 {[%clk 0:02:55]} 3. d4 {[%clk 0:02:57]}  exd4 {[%clk 0:02:56]} 4. Nxd4 {[%clk 0:02:58]}  Nf6 {[%clk 0:02:56]} 5. Nxc6 {[%clk 0:02:58]}  bxc6 {[%clk 0:02:57]} 6. Bd3 {[%clk 0:02:59]}  d5 {[%clk 0:02:57]} 7. exd5 {[%clk 0:03:00]}  cxd5 {[%clk 0:02:55]} 8. O-O {[%clk 0:03:00]}  Be7 {[%clk 0:02:55]} 9. Re1 {[%clk 0:03:01]}  O-O {[%clk 0:02:56]} 10. h3 {[%clk 0:03:01]}  c6 {[%clk 0:02:55]} 11. Nd2 {[%clk 0:03:01]}  Be6 {[%clk 0:02:55]} 12. Nf3 {[%clk 0:03:02]}  c5 {[%clk 0:02:51]} 13. b3 {[%clk 0:02:57]}  h6 {[%clk 0:02:44]} 14. Bb2 {[%clk 0:02:55]}  Rb8 {[%clk 0:02:39]} 15. Be5 {[%clk 0:02:53]}  Rb7 {[%clk 0:02:37]} 16. Qe2 {[%clk 0:02:45]}  Nd7 {[%clk 0:02:35]} 17. Bg3 {[%clk 0:02:41]}  Bf6 {[%clk 0:02:25]} 18. Rad1 {[%clk 0:02:40]}  Qa5 {[%clk 0:02:25]} 19. c4 {[%clk 0:02:36]}  Nb6 {[%clk 0:02:13]} 20. Be5 {[%clk 0:02:21]}  Bxe5 {[%clk 0:02:08]} 21. Nxe5 {[%clk 0:02:22]}  Rc7 {[%clk 0:02:00]} 22. cxd5 {[%clk 0:02:17]}  Nxd5 {[%clk 0:02:00]} 23. Qf3 {[%clk 0:02:09]}  Nf6 {[%clk 0:01:58]} 24. Re2 {[%clk 0:02:06]}  Qb4 {[%clk 0:01:50]} 25. Rde1 {[%clk 0:02:05]}  Rd8 {[%clk 0:01:46]} 26. Bc4 {[%clk 0:01:56]}  Re8 {[%clk 0:01:24]} 27. Nxf7 {[%clk 0:01:45]}  Kxf7 {[%clk 0:01:01]} 28. Rxe6 {[%clk 0:01:40]}  Rxe6 {[%clk 0:00:59]} 29. Rxe6 {[%clk 0:01:39]}  Kf8 {[%clk 0:00:56]} 30. Qa8+ {[%clk 0:01:35]} 1-0


[Site "https://www.chess.com"]

[Event "Titled Tuesday Blitz June 15 2021"]
[White "Khanin, Semen"]
[Black "Nakamura, Hikaru"]
[WhiteFideId "4111990"]
[BlackFideId "2016192"]
[WhiteElo "2521"]
[BlackElo "2900"]
[Result "0-1"]
[Round "09"]
[TimeControl "180+1"]
[Date "2021.06.15"]
[WhiteClock "0:00:03"]
[BlackClock "0:00:49"]

1. e4 {[%clk 0:02:59]}  c5 {[%clk 0:02:59]} 2. Nf3 {[%clk 0:02:59]}  d6 {[%clk 0:02:58]} 3. d4 {[%clk 0:02:59]}  cxd4 {[%clk 0:02:58]} 4. Nxd4 {[%clk 0:02:59]}  Nf6 {[%clk 0:02:59]} 5. Nc3 {[%clk 0:02:59]}  a6 {[%clk 0:02:58]} 6. f3 {[%clk 0:02:59]}  e5 {[%clk 0:02:56]} 7. Nb3 {[%clk 0:02:59]}  Be6 {[%clk 0:02:53]} 8. Be3 {[%clk 0:02:59]}  h5 {[%clk 0:02:54]} 9. Qd2 {[%clk 0:02:57]}  Nbd7 {[%clk 0:02:53]} 10. O-O-O {[%clk 0:02:53]}  Rc8 {[%clk 0:02:52]} 11. h4 {[%clk 0:02:50]}  Be7 {[%clk 0:02:47]} 12. Bg5 {[%clk 0:02:44]}  b5 {[%clk 0:02:47]} 13. a3 {[%clk 0:02:44]}  Qb6 {[%clk 0:02:27]} 14. Nd5 {[%clk 0:02:17]}  Nxd5 {[%clk 0:02:19]} 15. exd5 {[%clk 0:02:17]}  Bf5 {[%clk 0:02:20]} 16. Bd3 {[%clk 0:02:17]}  Bxd3 {[%clk 0:02:18]} 17. Qxd3 {[%clk 0:02:17]}  a5 {[%clk 0:02:16]} 18. Bxe7 {[%clk 0:02:10]}  Kxe7 {[%clk 0:02:17]} 19. Rhe1 {[%clk 0:02:10]}  Kf8 {[%clk 0:02:07]} 20. Kb1 {[%clk 0:01:41]}  a4 {[%clk 0:02:04]} 21. Nc1 {[%clk 0:01:41]}  g6 {[%clk 0:01:58]} 22. Na2 {[%clk 0:01:41]}  Rc4 {[%clk 0:01:54]} 23. Re4 {[%clk 0:01:20]}  Nc5 {[%clk 0:01:54]} 24. Qe3 {[%clk 0:01:21]}  Rxe4 {[%clk 0:01:53]} 25. fxe4 {[%clk 0:01:21]}  Kg7 {[%clk 0:01:54]} 26. Nb4 {[%clk 0:01:21]}  Qd8 {[%clk 0:01:53]} 27. g3 {[%clk 0:01:18]}  Qd7 {[%clk 0:01:54]} 28. Rf1 {[%clk 0:01:17]}  Qg4 {[%clk 0:01:40]} 29. Qf2 {[%clk 0:01:17]}  Rf8 {[%clk 0:01:40]} 30. Qf6+ {[%clk 0:01:17]}  Kg8 {[%clk 0:01:39]} 31. Qe7 {[%clk 0:00:26]}  Nxe4 {[%clk 0:01:37]} 32. Re1 {[%clk 0:00:24]}  Nd2+ {[%clk 0:01:27]} 33. Ka1 {[%clk 0:00:22]}  Qxg3 {[%clk 0:01:24]} 34. Rd1 {[%clk 0:00:22]}  Ne4 {[%clk 0:01:17]} 35. Nc6 {[%clk 0:00:22]}  Qg2 {[%clk 0:01:14]} 36. Kb1 {[%clk 0:00:14]}  Qf3 {[%clk 0:01:12]} 37. Rd3 {[%clk 0:00:14]}  Qf1+ {[%clk 0:01:08]} 38. Ka2 {[%clk 0:00:14]}  Qe2 {[%clk 0:01:06]} 39. Qc7 {[%clk 0:00:09]}  Kg7 {[%clk 0:00:59]} 40. Nb4 {[%clk 0:00:09]}  Qg4 {[%clk 0:00:55]} 41. Qb6 {[%clk 0:00:06]}  Qxh4 {[%clk 0:00:55]} 42. Qxb5 {[%clk 0:00:06]}  Qf6 {[%clk 0:00:53]} 43. Qc4 {[%clk 0:00:05]}  Nc5 {[%clk 0:00:53]} 44. Rg3 {[%clk 0:00:04]}  h4 {[%clk 0:00:52]} 45. Rg1 {[%clk 0:00:04]}  h3 {[%clk 0:00:52]} 46. Qg4 {[%clk 0:00:04]}  h2 {[%clk 0:00:52]} 47. Rh1 {[%clk 0:00:04]}  Rh8 {[%clk 0:00:52]} 48. Nc6 {[%clk 0:00:04]}  Qf4 {[%clk 0:00:52]} 49. Qg2 {[%clk 0:00:04]}  e4 {[%clk 0:00:51]} 50. Nd4 {[%clk 0:00:04]}  e3 {[%clk 0:00:51]} 51. Ne2 {[%clk 0:00:02]}  Qf2 {[%clk 0:00:50]} 52. Qg4 {[%clk 0:00:02]}  Qf5 {[%clk 0:00:48]} 53. Qd4+ {[%clk 0:00:03]}  Qe5 {[%clk 0:00:49]} 54. Qd3 {[%clk 0:00:03]}  Nxd3 {[%clk 0:00:49]} 0-1


[Site "https://www.chess.com"]

[Event "Titled Tuesday Blitz June 15 2021"]
[White "Mekhitarian, Krikor Sevag"]
[Black "Chigaev, Maksim"]
[WhiteFideId "2107660"]
[BlackFideId "4108116"]
[WhiteElo "2598"]
[BlackElo "2646"]
[Result "1-0"]
[Round "09"]
[TimeControl "180+1"]
[Date "2021.06.15"]
[WhiteClock "0:00:02"]
[BlackClock "0:00:02"]

1. e4 {[%clk 0:03:00]}  c5 {[%clk 0:02:59]} 2. Nf3 {[%clk 0:03:00]}  e6 {[%clk 0:03:00]} 3. d4 {[%clk 0:03:00]}  cxd4 {[%clk 0:03:01]} 4. Nxd4 {[%clk 0:03:00]}  Nc6 {[%clk 0:03:02]} 5. Nc3 {[%clk 0:03:00]}  Qc7 {[%clk 0:03:02]} 6. g3 {[%clk 0:02:48]}  a6 {[%clk 0:03:02]} 7. Bg2 {[%clk 0:02:47]}  Nf6 {[%clk 0:03:02]} 8. O-O {[%clk 0:02:44]}  Nxd4 {[%clk 0:03:02]} 9. Qxd4 {[%clk 0:02:45]}  Bc5 {[%clk 0:03:02]} 10. Bf4 {[%clk 0:02:33]}  d6 {[%clk 0:03:02]} 11. Qd3 {[%clk 0:02:30]}  h6 {[%clk 0:03:00]} 12. Na4 {[%clk 0:02:27]}  e5 {[%clk 0:02:53]} 13. Nxc5 {[%clk 0:02:27]}  exf4 {[%clk 0:02:51]} 14. Nb3 {[%clk 0:02:18]}  fxg3 {[%clk 0:02:52]} 15. hxg3 {[%clk 0:02:13]}  Be6 {[%clk 0:02:49]} 16. Rfd1 {[%clk 0:02:12]}  Rd8 {[%clk 0:02:49]} 17. Nd4 {[%clk 0:02:10]}  O-O {[%clk 0:02:44]} 18. Nxe6 {[%clk 0:01:58]}  fxe6 {[%clk 0:02:44]} 19. Rd2 {[%clk 0:01:50]}  Kh8 {[%clk 0:02:37]} 20. Re1 {[%clk 0:01:49]}  Ng4 {[%clk 0:02:34]} 21. Qd4 {[%clk 0:01:36]}  b5 {[%clk 0:01:47]} 22. c3 {[%clk 0:01:23]}  Qf7 {[%clk 0:01:43]} 23. f3 {[%clk 0:01:23]}  Ne5 {[%clk 0:01:43]} 24. f4 {[%clk 0:01:13]}  Nc4 {[%clk 0:01:28]} 25. Rf2 {[%clk 0:01:12]}  Qc7 {[%clk 0:01:26]} 26. b3 {[%clk 0:01:09]}  Nb6 {[%clk 0:01:26]} 27. e5 {[%clk 0:01:01]}  d5 {[%clk 0:01:17]} 28. Bh3 {[%clk 0:01:01]}  Rde8 {[%clk 0:01:14]} 29. Re3 {[%clk 0:00:59]}  Nc8 {[%clk 0:00:58]} 30. Kh2 {[%clk 0:00:52]}  Qc6 {[%clk 0:00:50]} 31. c4 {[%clk 0:00:40]}  bxc4 {[%clk 0:00:47]} 32. bxc4 {[%clk 0:00:40]}  dxc4 {[%clk 0:00:46]} 33. Bg2 {[%clk 0:00:38]}  Qc7 {[%clk 0:00:43]} 34. Rb2 {[%clk 0:00:30]}  Ne7 {[%clk 0:00:38]} 35. Rc3 {[%clk 0:00:29]}  Nf5 {[%clk 0:00:29]} 36. Qxc4 {[%clk 0:00:28]}  Qf7 {[%clk 0:00:25]} 37. Qe2 {[%clk 0:00:24]}  a5 {[%clk 0:00:24]} 38. Rb7 {[%clk 0:00:22]}  Qg6 {[%clk 0:00:23]} 39. Qf2 {[%clk 0:00:20]}  Rb8 {[%clk 0:00:20]} 40. Rcb3 {[%clk 0:00:16]}  Rxb7 {[%clk 0:00:18]} 41. Rxb7 {[%clk 0:00:17]}  h5 {[%clk 0:00:18]} 42. Bh3 {[%clk 0:00:17]}  Rc8 {[%clk 0:00:17]} 43. Rb2 {[%clk 0:00:15]}  a4 {[%clk 0:00:15]} 44. Rd2 {[%clk 0:00:14]}  Rc3 {[%clk 0:00:12]} 45. Bxf5 {[%clk 0:00:13]}  Qxf5 {[%clk 0:00:13]} 46. Qd4 {[%clk 0:00:10]}  Rc1 {[%clk 0:00:04]} 47. Qd8+ {[%clk 0:00:09]}  Kh7 {[%clk 0:00:04]} 48. Qd3 {[%clk 0:00:10]}  Qxd3 {[%clk 0:00:03]} 49. Rxd3 {[%clk 0:00:11]}  Rc2+ {[%clk 0:00:04]} 50. Kh3 {[%clk 0:00:12]}  Rxa2 {[%clk 0:00:04]} 51. Rd6 {[%clk 0:00:12]}  a3 {[%clk 0:00:03]} 52. Rxe6 {[%clk 0:00:13]}  Ra1 {[%clk 0:00:03]} 53. Ra6 {[%clk 0:00:13]}  a2 {[%clk 0:00:04]} 54. Kg2 {[%clk 0:00:11]}  g6 {[%clk 0:00:04]} 55. Ra7+ {[%clk 0:00:07]}  Kg8 {[%clk 0:00:05]} 56. Kh2 {[%clk 0:00:07]}  Kf8 {[%clk 0:00:05]} 57. Kg2 {[%clk 0:00:08]}  Ke8 {[%clk 0:00:06]} 58. Kh2 {[%clk 0:00:06]}  Kd8 {[%clk 0:00:06]} 59. Kg2 {[%clk 0:00:07]}  Kc8 {[%clk 0:00:07]} 60. Kh2 {[%clk 0:00:08]}  Kb8 {[%clk 0:00:07]} 61. Ra3 {[%clk 0:00:07]}  Kc7 {[%clk 0:00:08]} 62. Kg2 {[%clk 0:00:07]}  Kc6 {[%clk 0:00:08]} 63. Ra8 {[%clk 0:00:05]}  Kd5 {[%clk 0:00:08]} 64. Ra6 {[%clk 0:00:03]}  Kc5 {[%clk 0:00:03]} 65. Kh2 {[%clk 0:00:03]}  Kd5 {[%clk 0:00:03]} 66. Kg2 {[%clk 0:00:02]}  Kc5 {[%clk 0:00:04]} 67. e6 {[%clk 0:00:03]}  Re1 {[%clk 0:00:02]} 68. Rxa2 {[%clk 0:00:02]}  Rxe6 {[%clk 0:00:03]} 69. Rd2 {[%clk 0:00:03]}  Rd6 {[%clk 0:00:02]} 70. Re2 {[%clk 0:00:03]}  Kd5 {[%clk 0:00:03]} 71. Kh3 {[%clk 0:00:03]}  Re6 {[%clk 0:00:03]} 72. Ra2 {[%clk 0:00:03]}  Kd6 {[%clk 0:00:03]} 73. Kh4 {[%clk 0:00:03]}  Ke7 {[%clk 0:00:02]} 74. Kg5 {[%clk 0:00:04]}  Rd6 {[%clk 0:00:03]} 75. Ra7+ {[%clk 0:00:04]}  Kf8 {[%clk 0:00:03]} 76. Ra5 {[%clk 0:00:03]}  Kf7 {[%clk 0:00:03]} 77. Ra7+ {[%clk 0:00:03]}  Kf8 {[%clk 0:00:03]} 78. Kh6 {[%clk 0:00:03]}  Rf6 {[%clk 0:00:03]} 79. Rb7 {[%clk 0:00:02]}  h4 {[%clk 0:00:02]} 80. gxh4 {[%clk 0:00:02]}  Rxf4 {[%clk 0:00:02]} 81. Kg5 {[%clk 0:00:03]}  Re4 {[%clk 0:00:02]} 82. Kxg6 {[%clk 0:00:02]} 1-0


[Site "https://www.chess.com"]